[Event "DFMMLV 2019"]
[Site "Braunfels"]
[Date "2019.06.21"]
[Round "2.53"]
[White "Marx, Christina"]
[Black "Hoefner, Nina"]
[Result "0-1"]
[ECO "B70"]
[WhiteElo "1605"]
[BlackElo "1557"]
[Annotator "NA RC"]
[PlyCount "72"]
[EventDate "2019.06.20"]
[EventType "team-tourn"]
[EventCountry "GER"]
[SourceTitle "playchess.com"]
[Source "ChessBase"]
[SourceQuality "1"]
[WhiteTeam "Rheinland Pfalz"]
[BlackTeam "Hamburg"]
[TimeControl "40/5400+30:1800+30"]

1. e4 {[%emt 0:00:00]} c5 {[%emt 0:00:00]} 2. Nf3 {[%emt 0:00:00]} d6 {[%emt 0:00:00]} 3. d4 {[%emt 0:03:03]} cxd4 {[%emt 0:00:00]} 4. Nxd4 {[%emt 0:00:07]} Nf6 {[%emt 0:00:32]} 5. Nc3 {[%emt 0:00:41]} g6 {[%emt 0:00:19]} 6. Bg5 {[%emt 0:04:28]} Bg7 {[%emt 0:00:18]} 7. Qd2 {[%emt 0:03:24]} O-O {[%emt 0:00:49]} 8. O-O-O {[%emt 0:01:37]} Nc6 {[%emt 0:00:17]} 9. f4 {[%emt 0:07:00]} Nxe4 {[%emt 0:04:05]} 10. Nxc6 {[%emt 0:05:32]} bxc6 {[%emt 0:31:41]} 11. Nxe4 {[%emt 0:01:38]} Rb8 {[%emt 0:08:11]} 12. b3 {[%emt 0:05:20]} d5 {[%emt 0:04:12]} 13. Nc5 {[%emt 0:01:41]} Qb6 {[%emt 0:02:53]} 14. Qe3 {[%emt 0:04:30]} e6 {[%emt 0:05:20]} 15. c3 {[%emt 0:06:46]} f6 {[%emt 0:03:27]} 16. Bh4 {[%emt 0:00:49]} e5 {[%emt 0:01:29]} 17. fxe5 {[%emt 0:01:18]} fxe5 {[%emt 0:00:19]} 18. Bg3 {[%emt 0:02:16]} Re8 {[%emt 0:08:34]} 19. b4 {[%emt 0:00:48]} Bf5 {[%emt 0:10:03]} 20. Bd3 {[%emt 0:01:30]} Rbd8 {[%emt 0:01:37]} 21. Rhf1 {[%emt 0:02:59]} Bxd3 {[%emt 0:01:34]} 22. Nxd3 {[%emt 0:00:53]} Rb8 {[%emt 0:01:24]} 23. Nc5 {[%emt 0:03:07]} a5 {[%emt 0:01:05]} 24. a3 {[%emt 0:00:07]} axb4 {[%emt 0:01:18]} 25. Rde1 {[%emt 0:00:58]} Ra8 {[%emt 0:01:07]} 26. axb4 {[%emt 0:01:36]} Rad8 {[%emt 0:01:49]} 27. Rd1 {[%emt 0:01:14]} d4 {[%emt 0:04:39]} 28. Qe4 {[%emt 0:05:44]} dxc3 {[%emt 0:01:22]} 29. Qc4+ {[%emt 0:00:06]} Kh8 {[%emt 0:01:13]} 30. Ne6 {[%emt 0:01:56]} Rxe6 {[%emt 0:00:13]} 31. Qe2 {[%emt 0:14:38]} c2 {[%emt 0:02:08]} 32. Kxc2 {[%emt 0:00:30]} Rd7 {[%emt 0:02:29]} 33. Rb1 {[%emt 0:00:00]} e4 {[%emt 0:00:30]} 34. Qxe4 {[%emt 0:00:00]} Bb2 {[%emt 0:00:00]} 35. Rxb2 {[%emt 0:02:31]} Rd2+ {[%emt 0:00:00]} 36. Kc3 {[%emt 0:01:34]} Rd3+ {[%emt 0:00:00]} 0-1

[Event "DFMMLV 2019"]
[Site "Braunfels"]
[Date "2019.06.21"]
[Round "2.54"]
[White "Harder, Daniella"]
[Black "Perovic-Ottstadt, Sanja"]
[Result "1-0"]
[ECO "A40"]
[WhiteElo "1630"]
[BlackElo "1593"]
[Annotator "NA RC"]
[PlyCount "99"]
[EventDate "2019.06.20"]
[EventType "team-tourn"]
[EventCountry "GER"]
[SourceTitle "playchess.com"]
[Source "ChessBase"]
[SourceQuality "1"]
[WhiteTeam "Hamburg"]
[BlackTeam "Rheinland Pfalz"]
[TimeControl "40/5400+30:1800+30"]

1. d4 {[%emt 0:00:00]} e6 {[%emt 0:00:00]} 2. Nf3 {[%emt 0:00:00]} d5 {[%emt 0:00:16]} 3. g3 {[%emt 0:00:00]} Nf6 {[%emt 0:00:13]} 4. Bg2 {[%emt 0:00:00]} Be7 {[%emt 0:00:14]} 5. O-O {[%emt 0:00:11]} O-O {[%emt 0:00:09]} 6. Ne5 {[%emt 0:07:44]} Nbd7 {[%emt 0:01:28]} 7. Nd3 {[%emt 0:10:48]} b6 {[%emt 0:02:11]} 8. Nd2 {[%emt 0:00:15]} Bb7 {[%emt 0:00:49]} 9. Nf3 {[%emt 0:05:11]} Rc8 {[%emt 0:01:30]} 10. c3 {[%emt 0:01:50]} c5 {[%emt 0:06:46]} 11. Qa4 {[%emt 0:00:10]} a6 {[%emt 0:02:34]} 12. Nfe5 {[%emt 0:05:13]} b5 {[%emt 0:01:04]} 13. Qd1 {[%emt 0:01:00]} cxd4 {[%emt 0:00:59]} 14. cxd4 {[%emt 0:01:59]} Re8 {[%emt 0:05:11]} 15. Nxd7 {[%emt 0:01:57]} Nxd7 {[%emt 0:00:56]} 16. b4 {[%emt 0:00:05]} a5 {[%emt 0:03:51]} 17. Nc5 {[%emt 0:13:52]} Ba8 {[%emt 0:04:21]} 18. Nxd7 {[%emt 0:00:17]} Qxd7 {[%emt 0:00:20]} 19. bxa5 {[%emt 0:00:04]} Rc4 {[%emt 0:03:30]} 20. e3 {[%emt 0:05:56]} Rec8 {[%emt 0:02:55]} 21. Bd2 {[%emt 0:05:06]} Ba3 {[%emt 0:03:30]} 22. Qb3 {[%emt 0:01:40]} b4 {[%emt 0:02:47]} 23. Bf3 {[%emt 0:13:42]} Qb7 {[%emt 0:03:52]} 24. Rfb1 {[%emt 0:02:40]} Rb8 {[%emt 0:05:00]} 25. Qd1 {[%emt 0:01:14]} Qa7 {[%emt 0:02:30]} 26. Be2 {[%emt 0:00:59]} Rcc8 {[%emt 0:03:50]} 27. a6 {[%emt 0:00:41]} Bc6 {[%emt 0:00:58]} 28. Bc1 {[%emt 0:02:50]} Rb6 {[%emt 0:05:28]} 29. Bxa3 {[%emt 0:00:44]} bxa3 {[%emt 0:00:19]} 30. Rxb6 {[%emt 0:00:46]} Qxb6 {[%emt 0:00:32]} 31. Rb1 {[%emt 0:02:15]} Qa5 {[%emt 0:01:27]} 32. Qb3 {[%emt 0:01:59]} g6 {[%emt 0:00:53]} 33. Qb4 {[%emt 0:03:50]} Qxb4 {[%emt 0:06:56]} 34. Rxb4 {[%emt 0:00:05]} Ra8 {[%emt 0:01:48]} 35. Rb6 {[%emt 0:01:31]} Bd7 {[%emt 0:01:31]} 36. Rb3 {[%emt 0:01:29]} Bc8 {[%emt 0:02:05]} 37. Rxa3 {[%emt 0:00:06]} Kf8 {[%emt 0:00:37]} 38. Kf1 {[%emt 0:00:59]} Ke7 {[%emt 0:00:57]} 39. Ke1 {[%emt 0:01:34]} Kd8 {[%emt 0:02:20]} 40. Kd2 {[%emt 0:02:59]} Kc7 {[%emt 0:01:01]} 41. Rc3+ {[%emt 0:31:31]} Kb6 {[%emt 0:30:38]} 42. Rb3+ {[%emt 0:02:12]} Ka5 {[%emt 0:03:25]} 43. Kc3 {[%emt 0:00:00]} Bxa6 {[%emt 0:00:00]} 44. Ra3+ {[%emt 0:00:00]} Kb6 {[%emt 0:00:00]} 45. Rxa6+ {[%emt 0:00:00]} Rxa6 {[%emt 0:00:00]} 46. Bxa6 {[%emt 0:00:00]} Kxa6 {[%emt 0:00:00]} 47. Kb4 {[%emt 0:00:00]} Kb6 {[%emt 0:00:00]} 48. a3 {[%emt 0:00:00]} Ka6 {[%emt 0:00:00]} 49. Kc5 {[%emt 0:00:00]} Ka5 {[%emt 0:00:00]} 50. Kd6 {[%emt 0:00:00]} 1-0

[Event "DFMMLV 2019"]
[Site "Braunfels"]
[Date "2019.06.21"]
[Round "2.55"]
[White "Marx, Sarah"]
[Black "Reich, Kristina"]
[Result "0-1"]
[ECO "B40"]
[WhiteElo "1068"]
[BlackElo "1544"]
[Annotator "NA RC"]
[PlyCount "76"]
[EventDate "2019.06.20"]
[EventType "team-tourn"]
[EventCountry "GER"]
[SourceTitle "playchess.com"]
[Source "ChessBase"]
[SourceQuality "1"]
[WhiteTeam "Rheinland Pfalz"]
[BlackTeam "Hamburg"]
[TimeControl "40/5400+30:1800+30"]

1. e4 c5 2. Nf3 {[%emt 0:00:40]} e6 {[%emt 0:00:10]} 3. d4 {[%emt 0:02:03]} cxd4 {[%emt 0:00:05]} 4. Bf4 {[%emt 0:01:29]} Qa5+ {[%emt 0:14:20]} 5. Qd2 {[%emt 0:03:44]} Bb4 {[%emt 0:01:56]} 6. c3 {[%emt 0:00:11]} dxc3 {[%emt 0:00:44]} 7. bxc3 {[%emt 0:00:15]} Bc5 {[%emt 0:04:40]} 8. Bc4 {[%emt 0:01:50]} Nc6 {[%emt 0:05:44]} 9. O-O {[%emt 0:01:24]} Nge7 {[%emt 0:03:09]} 10. Bd6 {[%emt 0:04:10]} Bb6 {[%emt 0:03:29]} 11. Bb4 Nxb4 {[%emt 0:02:35]} 12. cxb4 {[%emt 0:01:18]} Qh5 {[%emt 0:00:12]} 13. Qd6 {[%emt 0:02:12]} Bd8 {[%emt 0:06:08]} 14. Nc3 {[%emt 0:01:37]} O-O {[%emt 0:03:44]} 15. Ne2 {[%emt 0:01:48]} Ng6 {[%emt 0:04:37]} 16. Ng3 {[%emt 0:01:22]} Qh6 {[%emt 0:02:07]} 17. Qd2 {[%emt 0:02:43]} Qxd2 {[%emt 0:00:37]} 18. Nxd2 {[%emt 0:00:06]} a6 {[%emt 0:01:51]} 19. a4 {[%emt 0:00:11]} b6 {[%emt 0:00:40]} 20. f4 {[%emt 0:00:49]} Nxf4 {[%emt 0:07:07]} 21. Rxf4 {[%emt 0:00:16]} Bg5 {[%emt 0:00:07]} 22. Rf2 {[%emt 0:01:02]} Be3 {[%emt 0:00:02]} 23. Raf1 {[%emt 0:00:40]} Bb7 {[%emt 0:00:34]} 24. Kh1 {[%emt 0:00:16]} Bxf2 {[%emt 0:00:06]} 25. Rxf2 {[%emt 0:00:14]} Rac8 {[%emt 0:00:26]} 26. h3 {[%emt 0:01:15]} Rfd8 {[%emt 0:01:22]} 27. e5 {[%emt 0:02:13]} d6 {[%emt 0:03:02]} 28. exd6 {[%emt 0:00:58]} Rxd6 {[%emt 0:00:11]} 29. Re2 {[%emt 0:01:41]} Kf8 {[%emt 0:02:25]} 30. Bb3 {[%emt 0:01:11]} Rd3 {[%emt 0:01:28]} 31. Kh2 {[%emt 0:01:33]} Rcc3 {[%emt 0:01:55]} 32. Ba2 {[%emt 0:00:31]} Rxg3 {[%emt 0:02:08]} 33. Bb1 {[%emt 0:00:21]} Rge3 {[%emt 0:04:16]} 34. Rf2 {[%emt 0:00:59]} g6 {[%emt 0:01:22]} 35. Nf1 {[%emt 0:01:56]} Re1 {[%emt 0:05:28]} 36. Nd2 {[%emt 0:01:17]} Rcc1 {[%emt 0:01:57]} 37. Bd3 {[%emt 0:01:14]} Rh1+ {[%emt 0:02:07]} 38. Kg3 {[%emt 0:00:06]} Rc3 {[%emt 0:00:49]} 0-1

[Event "DFMMLV 2019"]
[Site "Braunfels"]
[Date "2019.06.21"]
[Round "2.56"]
[White "Hoelzer, Jeanette"]
[Black "Kalina, Mandy"]
[Result "1-0"]
[ECO "C50"]
[WhiteElo "1662"]
[BlackElo "1009"]
[Annotator "NA RC"]
[PlyCount "95"]
[EventDate "2019.06.20"]
[EventType "team-tourn"]
[EventCountry "GER"]
[SourceTitle "playchess.com"]
[Source "ChessBase"]
[SourceQuality "1"]
[WhiteTeam "Hamburg"]
[BlackTeam "Rheinland Pfalz"]
[TimeControl "40/5400+30:1800+30"]

1. e4 {[%emt 0:00:00]} e5 {[%emt 0:00:00]} 2. Nf3 {[%emt 0:00:00]} Nc6 {[%emt 0:00:00]} 3. Bc4 {[%emt 0:00:00]} Qe7 {[%emt 0:02:17]} 4. Nc3 {[%emt 0:02:17]} Nf6 {[%emt 0:02:10]} 5. d3 {[%emt 0:01:38]} d6 {[%emt 0:01:42]} 6. Bg5 {[%emt 0:02:47]} Be6 {[%emt 0:05:42]} 7. Nd5 {[%emt 0:05:39]} Bxd5 {[%emt 0:03:30]} 8. Bxd5 {[%emt 0:01:25]} h6 {[%emt 0:09:20]} 9. Bxc6+ {[%emt 0:02:48]} bxc6 {[%emt 0:02:10]} 10. Bxf6 {[%emt 0:06:21]} Qxf6 {[%emt 0:00:25]} 11. c3 {[%emt 0:02:25]} Qe6 {[%emt 0:07:27]} 12. Qa4 {[%emt 0:02:10]} Qd7 {[%emt 0:00:18]} 13. d4 {[%emt 0:13:09]} f6 {[%emt 0:05:24]} 14. Rd1 {[%emt 0:05:29]} c5 {[%emt 0:16:35]} 15. Qxd7+ {[%emt 0:02:15]} Kxd7 {[%emt 0:00:02]} 16. dxe5 {[%emt 0:04:18]} Re8 {[%emt 0:07:36]} 17. O-O {[%emt 0:04:16]} fxe5 {[%emt 0:00:16]} 18. a3 {[%emt 0:07:29]} Re6 {[%emt 0:02:47]} 19. b4 {[%emt 0:02:22]} cxb4 {[%emt 0:01:49]} 20. axb4 {[%emt 0:00:21]} Be7 {[%emt 0:02:23]} 21. Ra1 {[%emt 0:02:13]} Ra8 {[%emt 0:00:15]} 22. Ra2 {[%emt 0:03:01]} c6 {[%emt 0:00:24]} 23. Rfa1 {[%emt 0:01:54]} Rc8 {[%emt 0:02:16]} 24. Rxa7+ {[%emt 0:00:51]} Rc7 {[%emt 0:00:07]} 25. Rxc7+ {[%emt 0:04:08]} Kxc7 {[%emt 0:00:07]} 26. Rd1 {[%emt 0:00:52]} c5 {[%emt 0:03:15]} 27. b5 {[%emt 0:01:33]} c4 {[%emt 0:02:29]} 28. Nd2 {[%emt 0:01:18]} Kb6 {[%emt 0:01:25]} 29. Rb1 {[%emt 0:00:38]} Kc5 {[%emt 0:01:33]} 30. b6 {[%emt 0:02:20]} d5 {[%emt 0:07:05]} 31. b7 {[%emt 0:01:25]} Bd6 {[%emt 0:00:40]} 32. b8=Q {[%emt 0:00:41]} Bxb8 {[%emt 0:00:02]} 33. Rxb8 {[%emt 0:00:25]} Rd6 {[%emt 0:01:30]} 34. f3 {[%emt 0:02:41]} Rb6 {[%emt 0:01:31]} 35. Rxb6 {[%emt 0:02:34]} Kxb6 {[%emt 0:00:06]} 36. exd5 {[%emt 0:01:31]} Kc5 {[%emt 0:00:45]} 37. Ne4+ {[%emt 0:00:38]} Kxd5 {[%emt 0:00:43]} 38. Kf2 {[%emt 0:00:33]} Ke6 {[%emt 0:00:57]} 39. Kg3 {[%emt 0:00:26]} Kf5 {[%emt 0:01:04]} 40. Nd6+ {[%emt 0:00:43]} Ke6 {[%emt 0:01:34]} 41. Nxc4 {[%emt 0:30:21]} Kd5 {[%emt 0:30:23]} 42. Nd2 {[%emt 0:00:35]} g6 {[%emt 0:01:04]} 43. Ne4 {[%emt 0:00:47]} Kc4 {[%emt 0:01:34]} 44. Kg4 {[%emt 0:01:18]} Kd3 {[%emt 0:01:41]} 45. h4 {[%emt 0:00:49]} Ke3 {[%emt 0:02:17]} 46. h5 {[%emt 0:01:37]} gxh5+ {[%emt 0:00:17]} 47. Kxh5 {[%emt 0:00:36]} Kf4 {[%emt 0:00:09]} 48. Kxh6 {[%emt 0:00:45]} 1-0

[Event "DFMMLV 2019"]
[Site "Braunfels"]
[Date "2019.06.21"]
[Round "3.1"]
[White "Khrapko, Marharyta"]
[Black "Li, Zhuoling"]
[Result "0-1"]
[ECO "B32"]
[WhiteElo "2074"]
[BlackElo "2140"]
[Annotator "NA"]
[PlyCount "122"]
[EventDate "2019.06.20"]
[EventType "team-tourn"]
[EventCountry "GER"]
[SourceTitle "playchess.com"]
[Source "ChessBase"]
[SourceQuality "1"]
[WhiteTeam "Bayern 1"]
[BlackTeam "Wuerttemberg 1"]
[TimeControl "40/5400+30:1800+30"]

1. e4 {[%emt 0:00:00]} c5 {[%emt 0:00:00]} 2. Nf3 {[%emt 0:00:00]} Nc6 {[%emt 0:00:00]} 3. d4 {[%emt 0:01:06]} cxd4 {[%emt 0:00:00]} 4. Nxd4 {[%emt 0:00:02]} e5 {[%emt 0:00:00]} 5. Nb5 {[%emt 0:00:05]} d6 {[%emt 0:00:06]} 6. N1c3 {[%emt 0:00:08]} a6 {[%emt 0:00:05]} 7. Na3 {[%emt 0:00:04]} b5 {[%emt 0:00:03]} 8. Nd5 {[%emt 0:00:22]} Nge7 {[%emt 0:00:07]} 9. Bg5 {[%emt 0:03:38]} f6 {[%emt 0:01:42]} 10. Be3 {[%emt 0:08:43]} Rb8 {[%emt 0:05:10]} 11. Qh5+ {[%emt 0:12:07]} Ng6 {[%emt 0:00:52]} 12. Bd3 {[%emt 0:00:25]} Be6 {[%emt 0:09:09]} 13. h4 {[%emt 0:05:00]} Bf7 {[%emt 0:27:25]} 14. Qe2 {[%emt 0:04:00]} Nge7 {[%emt 0:02:41]} 15. c4 {[%emt 0:05:10]} bxc4 {[%emt 0:20:33]} 16. Bxc4 {[%emt 0:00:31]} Nxd5 {[%emt 0:00:12]} 17. exd5 {[%emt 0:01:29]} Nb4 {[%emt 0:00:24]} 18. Rd1 {[%emt 0:03:01]} Be7 {[%emt 0:01:22]} 19. Nb1 {[%emt 0:04:48]} Bg6 {[%emt 0:07:35]} 20. Na3 {[%emt 0:04:44]} O-O 21. h5 {[%emt 0:03:36]} Be8 {[%emt 0:06:39]} 22. Nb1 {[%emt 0:01:04]} e4 {[%emt 0:00:04]} 23. Nc3 {[%emt 0:02:44]} f5 {[%emt 0:00:55]} 24. a3 {[%emt 0:02:02]} Nd3+ {[%emt 0:01:10]} 25. Bxd3 {[%emt 0:00:02]} exd3 {[%emt 0:00:04]} 26. Rxd3 {[%emt 0:00:04]} Bf6 {[%emt 0:01:12]} 27. Bd4 {[%emt 0:06:39]} Bxd4 {[%emt 0:04:26]} 28. Rxd4 {[%emt 0:00:03]} Bb5 {[%emt 0:00:12]} 29. Qd2 {[%emt 0:00:40]} Re8+ {[%emt 0:03:20]} 30. Kd1 {[%emt 0:00:03]} Qf6 {[%emt 0:00:15]} 31. Kc1 {[%emt 0:01:43]} Bd7 {[%emt 0:01:50]} 32. Kb1 {[%emt 0:12:29]} Rb7 {[%emt 0:01:17]} 33. Ka2 {[%emt 0:00:59]} Reb8 {[%emt 0:00:29]} 34. Rb1 {[%emt 0:00:07]} Be8 {[%emt 0:00:25]} 35. g4 {[%emt 0:13:15]} fxg4 {[%emt 0:01:09]} 36. Rf4 {[%emt 0:03:08]} Qe5 {[%emt 0:00:57]} 37. b4 {[%emt 0:01:25]} Rc7 {[%emt 0:01:44]} 38. Rb3 {[%emt 0:03:00]} Rbc8 {[%emt 0:02:00]} 39. Re4 {[%emt 0:00:02]} Qxh5 {[%emt 0:00:38]} 40. Qe3 {[%emt 0:00:55]} Bf7 {[%emt 0:00:44]} 41. Rd4 {[%emt 0:06:38]} Qf5 {[%emt 0:03:55]} 42. Kb2 {[%emt 0:02:08]} Re8 {[%emt 0:09:57]} 43. Qd2 {[%emt 0:01:58]} Bg6 {[%emt 0:00:59]} 44. a4 {[%emt 0:02:36]} Rf8 {[%emt 0:04:16]} 45. b5 {[%emt 0:04:17]} axb5 {[%emt 0:00:55]} 46. axb5 {[%emt 0:00:21]} Qxf2 {[%emt 0:00:28]} 47. b6 {[%emt 0:04:31]} Rb7 {[%emt 0:00:17]} 48. Qxf2 {[%emt 0:05:52]} Rxf2+ {[%emt 0:00:02]} 49. Ka3 {[%emt 0:00:41]} g3 {[%emt 0:03:57]} 50. Rg4 {[%emt 0:03:46]} Rf3 {[%emt 0:02:02]} 51. Na4 {[%emt 0:01:49]} Rxb3+ {[%emt 0:00:59]} 52. Kxb3 {[%emt 0:00:02]} Be8 {[%emt 0:00:11]} 53. Nc3 {[%emt 0:01:07]} Rxb6+ {[%emt 0:02:16]} 54. Kc4 {[%emt 0:00:01]} h5 {[%emt 0:02:19]} 55. Rxg3 {[%emt 0:00:17]} Kh7 {[%emt 0:00:29]} 56. Ne4 {[%emt 0:00:40]} Bg6 {[%emt 0:00:50]} 57. Ng5+ {[%emt 0:00:54]} Kh6 {[%emt 0:00:17]} 58. Ne6 {[%emt 0:00:36]} Rb1 {[%emt 0:01:02]} 59. Rf3 {[%emt 0:01:08]} Rc1+ {[%emt 0:00:36]} 60. Kd4 {[%emt 0:00:43]} Rd1+ {[%emt 0:00:10]} 61. Kc4 {[%emt 0:00:30]} Be4 {[%emt 0:00:19] Kd4} 0-1

[Event "DFMMLV 2019"]
[Site "Braunfels"]
[Date "2019.06.21"]
[Round "3.2"]
[White "Meier, Annemarie"]
[Black "Siegl, Melina"]
[Result "1/2-1/2"]
[ECO "A10"]
[WhiteElo "2267"]
[BlackElo "2029"]
[Annotator "NA"]
[PlyCount "99"]
[EventDate "2019.06.20"]
[EventType "team-tourn"]
[EventCountry "GER"]
[SourceTitle "playchess.com"]
[Source "ChessBase"]
[SourceQuality "1"]
[WhiteTeam "Wuerttemberg 1"]
[BlackTeam "Bayern 1"]
[TimeControl "40/5400+30:1800+30"]

1. c4 {[%emt 0:00:00]} d6 {[%emt 0:00:00]} 2. Nc3 {[%emt 0:00:00]} g6 {[%emt 0:00:00]} 3. g3 {[%emt 0:01:25]} Bg7 {[%emt 0:00:02]} 4. Bg2 {[%emt 0:00:26]} e5 {[%emt 0:00:24]} 5. e4 {[%emt 0:00:22]} Ne7 {[%emt 0:00:56]} 6. Nge2 {[%emt 0:00:32]} O-O {[%emt 0:01:15]} 7. O-O {[%emt 0:03:27]} Be6 {[%emt 0:05:23]} 8. d3 {[%emt 0:04:48]} Qd7 {[%emt 0:01:59]} 9. Be3 {[%emt 0:03:51]} h6 {[%emt 0:05:25]} 10. Rc1 {[%emt 0:03:36]} Bh3 {[%emt 0:07:19]} 11. d4 {[%emt 0:04:39]} Bxg2 {[%emt 0:09:02]} 12. Kxg2 {[%emt 0:00:12]} Nbc6 {[%emt 0:03:26]} 13. d5 {[%emt 0:05:51]} Nd8 {[%emt 0:02:14]} 14. c5 {[%emt 0:01:59]} g5 {[%emt 0:04:04]} 15. Qb3 {[%emt 0:02:32]} f5 {[%emt 0:16:10]} 16. f3 {[%emt 0:04:18]} f4 {[%emt 0:05:03]} 17. cxd6 {[%emt 0:00:47]} cxd6 {[%emt 0:01:55]} 18. Bd2 {[%emt 0:00:18]} h5 {[%emt 0:10:59]} 19. Qb5 {[%emt 0:00:35]} Ndc6 {[%emt 0:05:32]} 20. dxc6 {[%emt 0:03:12]} bxc6 {[%emt 0:00:05]} 21. Qd3 {[%emt 0:01:32]} Rab8 {[%emt 0:00:28]} 22. Na4 {[%emt 0:03:01]} Rb7 {[%emt 0:03:43]} 23. b3 {[%emt 0:00:51]} Kh8 {[%emt 0:02:32]} 24. h3 {[%emt 0:06:50]} fxg3 {[%emt 0:04:30]} 25. Bxg5 {[%emt 0:00:46]} Bf6 {[%emt 0:01:05]} 26. Qe3 {[%emt 0:03:45]} Ng6 {[%emt 0:05:22]} 27. h4 {[%emt 0:09:11]} Kh7 {[%emt 0:02:00]} 28. Rh1 {[%emt 0:00:40]} Rb5 {[%emt 0:01:35]} 29. Kxg3 {[%emt 0:13:01]} Bxg5 {[%emt 0:00:35]} 30. hxg5 {[%emt 0:01:20]} h4+ {[%emt 0:00:05]} 31. Kf2 {[%emt 0:03:07]} Kg7 {[%emt 0:00:03]} 32. Qc3 {[%emt 0:03:04]} Qg4 {[%emt 0:00:23]} 33. Qe3 {[%emt 0:02:21]} Rb7 {[%emt 0:01:03]} 34. Rcg1 {[%emt 0:00:11]} Qh5 {[%emt 0:00:32]} 35. Ng3 {[%emt 0:04:22]} hxg3+ {[%emt 0:01:05]} 36. Kxg3 {[%emt 0:00:09]} Rxf3+ {[%emt 0:01:02]} 37. Qxf3 {[%emt 0:00:05]} Qxg5+ {[%emt 0:00:04]} 38. Qg4 {[%emt 0:00:27]} Qe3+ {[%emt 0:00:04]} 39. Kh2 {[%emt 0:01:38]} Qh6+ {[%emt 0:00:41]} 40. Qh3 {[%emt 0:03:28]} Qd2+ {[%emt 0:01:15]} 41. Rg2 {[%emt 0:36:50]} Qf4+ {[%emt 0:30:18]} 42. Qg3 {[%emt 0:00:00]} Qh6+ {[%emt 0:00:00]} 43. Kg1 {[%emt 0:00:00]} Qc1+ {[%emt 0:00:00]} 44. Kh2 {[%emt 0:00:00]} Qh6+ {[%emt 0:00:00]} 45. Qh3 {[%emt 0:00:00]} Qf4+ {[%emt 0:00:00]} 46. Qg3 {[%emt 0:00:00]} Qh6+ {[%emt 0:00:00]} 47. Qh3 {[%emt 0:00:00]} Qf4+ {[%emt 0:00:00]} 48. Kg1 {[%emt 0:00:00]} Qc1+ {[%emt 0:00:00]} 49. Kh2 {[%emt 0:00:00]} Qf4+ {[%emt 0:00:00]} 50. Qg3 {[%emt 0:00:00]} 1/2-1/2

[Event "DFMMLV 2019"]
[Site "Braunfels"]
[Date "2019.06.21"]
[Round "3.3"]
[White "Stangl, Anita"]
[Black "Mira, Helene"]
[Result "1-0"]
[ECO "C47"]
[WhiteElo "2010"]
[BlackElo "2029"]
[Annotator "NA"]
[PlyCount "137"]
[EventDate "2019.06.20"]
[EventType "team-tourn"]
[EventCountry "GER"]
[SourceTitle "playchess.com"]
[Source "ChessBase"]
[SourceQuality "1"]
[WhiteTeam "Bayern 1"]
[BlackTeam "Wuerttemberg 1"]
[TimeControl "40/5400+30:1800+30"]

1. e4 {[%emt 0:00:00]} e5 {[%emt 0:15:58]} 2. Nf3 {[%emt 0:00:00]} Nc6 {[%emt 0:00:04]} 3. Bc4 {[%emt 0:00:30]} Nf6 {[%emt 0:00:10]} 4. Nc3 {[%emt 0:04:12]} Be7 {[%emt 0:02:36]} 5. O-O {[%emt 0:00:45]} O-O {[%emt 0:00:08]} 6. d3 {[%emt 0:07:26]} d6 {[%emt 0:00:11]} 7. h3 {[%emt 0:00:32]} Na5 {[%emt 0:01:39]} 8. Bb3 {[%emt 0:00:35]} c6 {[%emt 0:00:46]} 9. Ne2 {[%emt 0:04:57]} Ne8 {[%emt 0:02:43]} 10. c3 {[%emt 0:03:39]} Nxb3 {[%emt 0:00:10]} 11. Qxb3 {[%emt 0:00:21]} g6 {[%emt 0:02:40]} 12. Bh6 {[%emt 0:03:40]} Ng7 {[%emt 0:00:08]} 13. d4 {[%emt 0:00:49]} Qc7 {[%emt 0:00:22]} 14. Ng5 {[%emt 0:09:48]} Qb6 {[%emt 0:06:02]} 15. Qxb6 {[%emt 0:06:38]} axb6 {[%emt 0:00:13]} 16. Nf3 {[%emt 0:01:23]} f6 {[%emt 0:01:32]} 17. Be3 {[%emt 0:00:27]} b5 {[%emt 0:00:12]} 18. Rfd1 {[%emt 0:02:59]} Be6 {[%emt 0:03:06]} 19. a3 {[%emt 0:05:46]} Bb3 {[%emt 0:02:42]} 20. Rd2 {[%emt 0:01:09]} Rfd8 {[%emt 0:08:01]} 21. d5 {[%emt 0:01:26]} f5 {[%emt 0:01:15]} 22. Bb6 {[%emt 0:03:59]} Rdc8 {[%emt 0:00:31]} 23. Nc1 {[%emt 0:09:13]} fxe4 {[%emt 0:00:16]} 24. Nxe5 {[%emt 0:03:25]} Bxd5 {[%emt 0:00:24]} 25. Ng4 {[%emt 0:01:40]} h5 {[%emt 0:00:37]} 26. Ne3 {[%emt 0:00:34]} Be6 {[%emt 0:00:16]} 27. Bd4 {[%emt 0:03:35]} Ne8 {[%emt 0:01:04]} 28. Nf1 {[%emt 0:02:33]} c5 {[%emt 0:04:20]} 29. Be3 {[%emt 0:00:48]} d5 {[%emt 0:00:55]} 30. Ne2 {[%emt 0:00:08]} Bf7 {[%emt 0:04:45]} 31. Bf4 {[%emt 0:04:31]} Bf6 {[%emt 0:00:37]} 32. Ne3 {[%emt 0:00:53]} b4 {[%emt 0:01:28]} 33. Nxd5 {[%emt 0:02:21]} Bxd5 {[%emt 0:00:13]} 34. Rxd5 {[%emt 0:00:40]} bxa3 {[%emt 0:00:27]} 35. Rxa3 {[%emt 0:04:07]} Rxa3 {[%emt 0:00:22]} 36. bxa3 {[%emt 0:00:08]} b6 {[%emt 0:05:33]} 37. Rd7 {[%emt 0:05:36]} Ra8 {[%emt 0:10:25]} 38. Bc1 {[%emt 0:01:10]} b5 {[%emt 0:04:23]} 39. Rb7 {[%emt 0:01:52]} b4 {[%emt 0:09:03]} 40. cxb4 {[%emt 0:02:24]} c4 41. Rd7 {[%emt 0:31:17]} c3 {[%emt 0:31:02]} 42. Ng3 {[%emt 0:01:10]} e3 {[%emt 0:03:09]} 43. fxe3 {[%emt 0:00:00]} Be5 {[%emt 0:00:00]} 44. Ne2 {[%emt 0:00:00]} Nd6 {[%emt 0:00:00]} 45. Nxc3 {[%emt 0:00:00]} Rc8 {[%emt 0:00:00]} 46. Ne2 {[%emt 0:00:00]} Rc2 {[%emt 0:00:00]} 47. Kf1 {[%emt 0:00:00]} Ne4 {[%emt 0:00:00]} 48. Ke1 {[%emt 0:00:00]} Ng3 {[%emt 0:00:00]} 49. Nxg3 {[%emt 0:00:00]} Rxc1+ {[%emt 0:00:00]} 50. Kf2 {[%emt 0:00:00]} Ra1 {[%emt 0:00:00]} 51. Ra7 {[%emt 0:00:00]} Bc3 {[%emt 0:00:00]} 52. b5 {[%emt 0:00:00]} Bb4 {[%emt 0:00:00]} 53. a4 {[%emt 0:00:00]} Bc5 {[%emt 0:00:00]} 54. Ra8+ {[%emt 0:00:00]} Kg7 {[%emt 0:00:00]} 55. Ne4 {[%emt 0:00:00]} Bb6 {[%emt 0:00:00]} 56. Ra6 {[%emt 0:00:00]} Bd8 {[%emt 0:00:00]} 57. Ra7+ {[%emt 0:01:07]} Kh6 {[%emt 0:00:00]} 58. Nd6 {[%emt 0:01:55]} Bb6 {[%emt 0:00:00]} 59. Ra6 {[%emt 0:02:00]} Bc5 {[%emt 0:00:00]} 60. Ne4 {[%emt 0:00:35]} Bb4 {[%emt 0:00:00]} 61. b6 {[%emt 0:00:31]} Be1+ {[%emt 0:00:00]} 62. Ke2 {[%emt 0:00:18]} Rb1 {[%emt 0:00:00]} 63. a5 {[%emt 0:00:25]} Bh4 {[%emt 0:01:58]} 64. Ra7 {[%emt 0:00:42]} Rb2+ {[%emt 0:01:36]} 65. Kd3 {[%emt 0:00:44]} Rxg2 {[%emt 0:03:21]} 66. b7 {[%emt 0:00:57]} Rb2 {[%emt 0:00:13]} 67. a6 {[%emt 0:00:21]} Bd8 {[%emt 0:00:09]} 68. Ra8 {[%emt 0:00:15]} Bc7 {[%emt 0:00:01]} 69. Rc8 {[%emt 0:00:15]} 1-0